[Event "Titled Tuesday Blitz June 27 Early 2023"]
[White "Maksimovic, Bojan"]
[Black "Tari, Aryan"]
[WhiteFideId "14408120"]
[BlackFideId "1510045"]
[WhiteElo "2802"]
[BlackElo "2936"]
[Result "0-1"]
[Round "10"]
[TimeControl "180+2"]
[Date "2023.06.27"]
[WhiteClock "0:00:03"]
[BlackClock "0:00:09"]
[Board "8"]

1. Nf3 {[%clk 0:03:00]}  d5 {[%clk 0:02:53]} 2. g3 {[%clk 0:03:01]}  c5 {[%clk 0:02:48]} 3. Bg2 {[%clk 0:03:01]}  Nc6 {[%clk 0:02:48]} 4. O-O {[%clk 0:03:01]}  e5 {[%clk 0:02:46]} 5. d3 {[%clk 0:03:02]}  Be7 {[%clk 0:02:46]} 6. Nbd2 {[%clk 0:03:02]}  g5 {[%clk 0:02:43]} 7. e4 {[%clk 0:03:01]}  d4 {[%clk 0:02:41]} 8. Nc4 {[%clk 0:03:02]}  f6 {[%clk 0:02:39]} 9. a4 {[%clk 0:02:57]}  Be6 {[%clk 0:02:35]} 10. h4 {[%clk 0:02:48]}  g4 {[%clk 0:02:25]} 11. Nh2 {[%clk 0:02:47]}  h5 {[%clk 0:02:25]} 12. f3 {[%clk 0:02:45]}  Qd7 {[%clk 0:02:17]} 13. fxg4 {[%clk 0:02:45]}  hxg4 {[%clk 0:02:17]} 14. b3 {[%clk 0:02:45]}  Nh6 {[%clk 0:02:15]} 15. Bxh6 {[%clk 0:02:30]}  Rxh6 {[%clk 0:02:15]} 16. Qe2 {[%clk 0:02:31]}  O-O-O {[%clk 0:02:10]} 17. a5 {[%clk 0:02:29]}  Kb8 {[%clk 0:02:09]} 18. Rf2 {[%clk 0:02:29]}  Rg8 {[%clk 0:02:06]} 19. Raf1 {[%clk 0:02:17]}  Qd8 {[%clk 0:01:56]} 20. Rf5 {[%clk 0:02:00]}  Rhg6 {[%clk 0:01:40]} 21. Qd2 {[%clk 0:01:34]}  Bxc4 {[%clk 0:01:35]} 22. bxc4 {[%clk 0:01:35]}  Qxa5 {[%clk 0:01:35]} 23. Qd1 {[%clk 0:01:33]}  Qd8 {[%clk 0:01:31]} 24. R1f2 {[%clk 0:01:31]}  a5 {[%clk 0:01:31]} 25. Bf1 {[%clk 0:01:32]}  a4 {[%clk 0:01:30]} 26. Be2 {[%clk 0:01:28]}  a3 {[%clk 0:01:30]} 27. Qa1 {[%clk 0:01:11]}  Qa5 {[%clk 0:01:26]} 28. Rf1 {[%clk 0:01:10]}  Nb4 {[%clk 0:01:21]} 29. Rc1 {[%clk 0:00:50]}  a2 {[%clk 0:01:08]} 30. Qb2 {[%clk 0:00:49]}  Bf8 {[%clk 0:01:04]} 31. h5 {[%clk 0:00:44]}  Bh6 {[%clk 0:01:04]} 32. Ra1 {[%clk 0:00:35]}  R6g7 {[%clk 0:01:00]} 33. Nf1 {[%clk 0:00:31]}  Qa6 {[%clk 0:00:48]} 34. c3 {[%clk 0:00:20]}  dxc3 {[%clk 0:00:47]} 35. Qxc3 {[%clk 0:00:21]}  Qd6 {[%clk 0:00:43]} 36. Rf2 {[%clk 0:00:18]}  Kc7 {[%clk 0:00:41]} 37. Bd1 {[%clk 0:00:16]}  Ra8 {[%clk 0:00:37]} 38. Bb3 {[%clk 0:00:10]}  Ra3 {[%clk 0:00:36]} 39. Rfxa2 {[%clk 0:00:02]}  Nxa2 {[%clk 0:00:33]} 40. Rxa2 {[%clk 0:00:03]}  Rxa2 {[%clk 0:00:33]} 41. Bxa2 {[%clk 0:00:04]}  Qd4+ {[%clk 0:00:30]} 42. Qxd4 {[%clk 0:00:05]}  cxd4 {[%clk 0:00:29]} 43. Bb3 {[%clk 0:00:03]}  Be3+ {[%clk 0:00:15]} 44. Kg2 {[%clk 0:00:03]}  Rh7 {[%clk 0:00:13]} 45. Nh2 {[%clk 0:00:03]}  Kd6 {[%clk 0:00:07]} 46. Ba4 {[%clk 0:00:02]}  Rxh5 {[%clk 0:00:06]} 47. Nxg4 {[%clk 0:00:02]}  Ke7 {[%clk 0:00:06]} 48. Bb5 {[%clk 0:00:02]}  Rh8 {[%clk 0:00:06]} 49. Kf3 {[%clk 0:00:02]}  Bg5 {[%clk 0:00:06]} 50. Nf2 {[%clk 0:00:01]}  Ra8 {[%clk 0:00:06]} 51. c5 {[%clk 0:00:01]}  Rc8 {[%clk 0:00:06]} 52. c6 {[%clk 0:00:01]}  bxc6 {[%clk 0:00:07]} 53. Bc4 {[%clk 0:00:02]}  Rb8 {[%clk 0:00:07]} 54. Nh3 {[%clk 0:00:02]}  Rb1 {[%clk 0:00:07]} 55. Kg4 {[%clk 0:00:03]}  Be3 {[%clk 0:00:07]} 56. Kf3 {[%clk 0:00:03]}  c5 {[%clk 0:00:08]} 57. Kg4 {[%clk 0:00:03]}  Rf1 {[%clk 0:00:08]} 58. Kh4 {[%clk 0:00:03]}  f5 {[%clk 0:00:07]} 59. exf5 {[%clk 0:00:04]}  Rxf5 {[%clk 0:00:08]} 60. g4 {[%clk 0:00:05]}  Bf2+ {[%clk 0:00:08]} 61. Nxf2 {[%clk 0:00:05]}  Rxf2 {[%clk 0:00:09]} 62. g5 {[%clk 0:00:05]}  e4 {[%clk 0:00:09]} 63. dxe4 {[%clk 0:00:03]}  Rc2 {[%clk 0:00:09]} 0-1


[Site "https://www.chess.com"]

[Event "Titled Tuesday Blitz June 27 Early 2023"]
[White "Demchenko, Anton"]
[Black "Vakhlamov, Igor L."]
[WhiteFideId "4160258"]
[BlackFideId "24126748"]
[WhiteElo "2935"]
[BlackElo "2801"]
[Result "1-0"]
[Round "10"]
[TimeControl "180+2"]
[Date "2023.06.27"]
[WhiteClock "0:00:06"]
[BlackClock "0:00:00"]
[Board "9"]

1. e4 {[%clk 0:02:56]}  c5 {[%clk 0:02:55]} 2. Nc3 {[%clk 0:02:54]}  e6 {[%clk 0:02:55]} 3. Nf3 {[%clk 0:02:51]}  Nc6 {[%clk 0:02:55]} 4. Bb5 {[%clk 0:02:47]}  Nge7 {[%clk 0:02:54]} 5. O-O {[%clk 0:02:38]}  a6 {[%clk 0:02:54]} 6. Bxc6 {[%clk 0:02:39]}  Nxc6 {[%clk 0:02:54]} 7. d4 {[%clk 0:02:40]}  cxd4 {[%clk 0:02:55]} 8. Nxd4 {[%clk 0:02:41]}  Nxd4 {[%clk 0:02:55]} 9. Qxd4 {[%clk 0:02:40]}  b5 {[%clk 0:02:56]} 10. Re1 {[%clk 0:02:18]}  f6 {[%clk 0:02:53]} 11. Be3 {[%clk 0:01:50]}  Bb7 {[%clk 0:02:53]} 12. a4 {[%clk 0:01:49]}  b4 {[%clk 0:02:51]} 13. Na2 {[%clk 0:01:49]}  a5 {[%clk 0:01:59]} 14. c3 {[%clk 0:01:43]}  e5 {[%clk 0:01:59]} 15. Qd3 {[%clk 0:01:32]}  Be7 {[%clk 0:01:24]} 16. Rad1 {[%clk 0:01:26]}  Bc6 {[%clk 0:01:12]} 17. b3 {[%clk 0:01:22]}  bxc3 {[%clk 0:01:08]} 18. Nxc3 {[%clk 0:01:21]}  O-O {[%clk 0:01:07]} 19. Nd5 {[%clk 0:01:20]}  Kh8 {[%clk 0:01:05]} 20. Bb6 {[%clk 0:01:10]}  Qb8 {[%clk 0:01:03]} 21. Bxa5 {[%clk 0:00:45]}  Bc5 {[%clk 0:00:45]} 22. Bd2 {[%clk 0:00:45]}  Qb7 {[%clk 0:00:42]} 23. Be3 {[%clk 0:00:43]}  Bxe3 {[%clk 0:00:38]} 24. Rxe3 {[%clk 0:00:43]}  Rfb8 {[%clk 0:00:39]} 25. h4 {[%clk 0:00:41]}  Ra5 {[%clk 0:00:33]} 26. Ne7 {[%clk 0:00:40]}  h6 {[%clk 0:00:30]} 27. h5 {[%clk 0:00:37]}  Qb4 {[%clk 0:00:27]} 28. Nxc6 {[%clk 0:00:34]}  dxc6 {[%clk 0:00:27]} 29. Qd7 {[%clk 0:00:32]}  Qb7 {[%clk 0:00:24]} 30. Rc3 {[%clk 0:00:30]}  c5 {[%clk 0:00:20]} 31. Qg4 {[%clk 0:00:27]}  c4 {[%clk 0:00:18]} 32. Rd7 {[%clk 0:00:24]}  Qxd7 {[%clk 0:00:10]} 33. Qxd7 {[%clk 0:00:25]}  cxb3 {[%clk 0:00:10]} 34. Rxb3 {[%clk 0:00:22]}  Rba8 {[%clk 0:00:08]} 35. Rb7 {[%clk 0:00:21]}  Rg8 {[%clk 0:00:07]} 36. Rc7 {[%clk 0:00:19]}  Raa8 {[%clk 0:00:07]} 37. f3 {[%clk 0:00:18]}  Rad8 {[%clk 0:00:07]} 38. Qc6 {[%clk 0:00:17]}  Ra8 {[%clk 0:00:08]} 39. Kh2 {[%clk 0:00:15]}  Kh7 {[%clk 0:00:06]} 40. Kh3 {[%clk 0:00:15]}  Kh8 {[%clk 0:00:06]} 41. Kg4 {[%clk 0:00:15]}  Kh7 {[%clk 0:00:07]} 42. Kf5 {[%clk 0:00:15]}  Rgf8 {[%clk 0:00:07]} 43. Qd7 {[%clk 0:00:14]}  Rg8 {[%clk 0:00:07]} 44. Rb7 {[%clk 0:00:11]}  Rad8 {[%clk 0:00:06]} 45. Qf7 {[%clk 0:00:11]}  Ra8 {[%clk 0:00:06]} 46. Ra7 {[%clk 0:00:10]}  Rab8 {[%clk 0:00:05]} 47. Qg6+ {[%clk 0:00:09]}  Kh8 {[%clk 0:00:05]} 48. a5 {[%clk 0:00:09]}  Rb2 {[%clk 0:00:04]} 49. Qg3 {[%clk 0:00:08]}  Rbb8 {[%clk 0:00:04]} 50. a6 {[%clk 0:00:08]}  Rb6 {[%clk 0:00:04]} 51. Qf2 {[%clk 0:00:07]}  Rbb8 {[%clk 0:00:02]} 52. Rb7 {[%clk 0:00:07]}  Ra8 {[%clk 0:00:02]} 53. a7 {[%clk 0:00:07]}  Raf8 {[%clk 0:00:00]} 54. Qb6 {[%clk 0:00:06]} 1-0


[Site "https://www.chess.com"]

[Event "Titled Tuesday Blitz June 27 Early 2023"]
[White "Weetik, Vjacheslav"]
[Black "Terry, Renato"]
[WhiteFideId "4153472"]
[BlackFideId "3803457"]
[WhiteElo "2801"]
[BlackElo "2993"]
[Result "0-1"]
[Round "10"]
[TimeControl "180+2"]
[Date "2023.06.27"]
[WhiteClock "0:00:00"]
[BlackClock "0:01:01"]
[Board "11"]

1. d4 {[%clk 0:02:58]}  e6 {[%clk 0:02:58]} 2. c4 {[%clk 0:02:56]}  Bb4+ {[%clk 0:02:58]} 3. Bd2 {[%clk 0:02:55]}  Qe7 {[%clk 0:02:58]} 4. Nf3 {[%clk 0:02:52]}  Nf6 {[%clk 0:02:57]} 5. g3 {[%clk 0:02:48]}  Nc6 {[%clk 0:02:57]} 6. Nc3 {[%clk 0:02:48]}  O-O {[%clk 0:02:57]} 7. Bg2 {[%clk 0:02:46]}  d6 {[%clk 0:02:57]} 8. O-O {[%clk 0:02:38]}  Bxc3 {[%clk 0:02:58]} 9. Bxc3 {[%clk 0:02:38]}  Ne4 {[%clk 0:02:58]} 10. Rc1 {[%clk 0:02:35]}  e5 {[%clk 0:02:56]} 11. Be1 {[%clk 0:02:09]}  Bg4 {[%clk 0:02:48]} 12. d5 {[%clk 0:02:01]}  Nb8 {[%clk 0:02:48]} 13. Nh4 {[%clk 0:01:41]}  Ng5 {[%clk 0:02:34]} 14. Bd2 {[%clk 0:01:27]}  Nh3+ {[%clk 0:02:30]} 15. Kh1 {[%clk 0:01:25]}  Na6 {[%clk 0:02:20]} 16. f3 {[%clk 0:01:23]}  Bd7 {[%clk 0:02:20]} 17. e4 {[%clk 0:01:22]}  g6 {[%clk 0:02:13]} 18. Bh6 {[%clk 0:01:15]}  Rfe8 {[%clk 0:02:13]} 19. Qd2 {[%clk 0:01:07]}  f6 {[%clk 0:02:14]} 20. b4 {[%clk 0:00:46]}  Ng5 {[%clk 0:02:09]} 21. Rce1 {[%clk 0:00:42]}  Rad8 {[%clk 0:02:07]} 22. a3 {[%clk 0:00:41]}  c5 {[%clk 0:02:00]} 23. b5 {[%clk 0:00:38]}  Nb8 {[%clk 0:02:00]} 24. a4 {[%clk 0:00:24]}  Bc8 {[%clk 0:02:00]} 25. a5 {[%clk 0:00:24]}  Nd7 {[%clk 0:01:59]} 26. Qc2 {[%clk 0:00:20]}  Nf8 {[%clk 0:01:57]} 27. f4 {[%clk 0:00:17]}  Nf7 {[%clk 0:01:57]} 28. Bxf8 {[%clk 0:00:17]}  Rxf8 {[%clk 0:01:56]} 29. f5 {[%clk 0:00:18]}  Kg7 {[%clk 0:01:56]} 30. Bf3 {[%clk 0:00:12]}  Rh8 {[%clk 0:01:44]} 31. Qc3 {[%clk 0:00:12]}  Bd7 {[%clk 0:01:38]} 32. Be2 {[%clk 0:00:13]}  Rdg8 {[%clk 0:01:38]} 33. Rf2 {[%clk 0:00:13]}  Nh6 {[%clk 0:01:33]} 34. Bd3 {[%clk 0:00:10]}  gxf5 {[%clk 0:01:31]} 35. exf5 {[%clk 0:00:09]}  Kf8 {[%clk 0:01:29]} 36. Be4 {[%clk 0:00:10]}  Qg7 {[%clk 0:01:30]} 37. b6 {[%clk 0:00:08]}  a6 {[%clk 0:01:30]} 38. Qd2 {[%clk 0:00:07]}  Be8 {[%clk 0:01:30]} 39. Ng2 {[%clk 0:00:06]}  Ke7 {[%clk 0:01:26]} 40. Ne3 {[%clk 0:00:07]}  Qg5 {[%clk 0:01:26]} 41. Rg1 {[%clk 0:00:06]}  Rg7 {[%clk 0:01:20]} 42. g4 {[%clk 0:00:06]}  Rhg8 {[%clk 0:01:11]} 43. h3 {[%clk 0:00:06]}  Qh4 {[%clk 0:01:05]} 44. Rh2 {[%clk 0:00:06]}  Qg5 {[%clk 0:01:00]} 45. Nc2 {[%clk 0:00:05]}  Nf7 {[%clk 0:01:00]} 46. Ne3 {[%clk 0:00:05]}  Qf4 {[%clk 0:00:59]} 47. Qd3 {[%clk 0:00:05]}  Ng5 {[%clk 0:01:00]} 48. Rf1 {[%clk 0:00:05]}  Qxe4+ {[%clk 0:01:00]} 49. Qxe4 {[%clk 0:00:00]}  Nxe4 {[%clk 0:01:01]} 0-1


[Site "https://www.chess.com"]

[Event "Titled Tuesday Blitz June 27 Early 2023"]
[White "Harshavardhan G B"]
[Black "Paravyan, David"]
[WhiteFideId "25059009"]
[BlackFideId "4194985"]
[WhiteElo "2814"]
[BlackElo "2986"]
[Result "0-1"]
[Round "10"]
[TimeControl "180+2"]
[Date "2023.06.27"]
[WhiteClock "0:02:28"]
[BlackClock "0:02:48"]
[Board "12"]

1. d4 {[%clk 0:02:47]}  Nf6 {[%clk 0:02:59]} 2. c4 {[%clk 0:02:46]}  g6 {[%clk 0:02:59]} 3. Nc3 {[%clk 0:02:44]}  d5 {[%clk 0:02:59]} 4. cxd5 {[%clk 0:02:41]}  Nxd5 {[%clk 0:03:00]} 5. e4 {[%clk 0:02:40]}  Nxc3 {[%clk 0:03:01]} 6. bxc3 {[%clk 0:02:41]}  Bg7 {[%clk 0:03:02]} 7. Bc4 {[%clk 0:02:41]}  c5 {[%clk 0:03:01]} 8. Ne2 {[%clk 0:02:41]}  O-O {[%clk 0:03:02]} 9. h4 {[%clk 0:02:39]}  Nc6 {[%clk 0:03:02]} 10. Be3 {[%clk 0:02:39]}  cxd4 {[%clk 0:03:02]} 11. cxd4 {[%clk 0:02:40]}  Qa5+ {[%clk 0:03:03]} 12. Kf1 {[%clk 0:02:39]}  Qa3 {[%clk 0:03:03]} 13. Rc1 {[%clk 0:02:38]}  Bg4 {[%clk 0:03:03]} 14. Qd2 {[%clk 0:02:35]}  Bxe2+ {[%clk 0:02:57]} 15. Bxe2 {[%clk 0:02:34]}  Nxd4 {[%clk 0:02:55]} 16. Bxd4 {[%clk 0:02:33]}  Bxd4 {[%clk 0:02:48]} 17. Qxd4 {[%clk 0:02:28]}  Qxc1+ {[%clk 0:02:48]} 0-1


[Site "https://www.chess.com"]

[Event "Titled Tuesday Blitz June 27 Early 2023"]
[White "Narayanan.S.L"]
[Black "Elsa167"]
[WhiteFideId "5058422"]
[WhiteElo "2984"]
[BlackElo "2823"]
[Result "1-0"]
[Round "10"]
[TimeControl "180+2"]
[Date "2023.06.27"]
[WhiteClock "0:01:27"]
[BlackClock "0:00:13"]
[Board "13"]

1. Nf3 {[%clk 0:03:00]}  Nf6 {[%clk 0:02:59]} 2. g3 {[%clk 0:03:01]}  d5 {[%clk 0:02:58]} 3. Bg2 {[%clk 0:03:02]}  e6 {[%clk 0:02:59]} 4. O-O {[%clk 0:03:02]}  Be7 {[%clk 0:03:00]} 5. c4 {[%clk 0:03:02]}  O-O {[%clk 0:03:01]} 6. Ne5 {[%clk 0:03:03]}  c6 {[%clk 0:03:00]} 7. d4 {[%clk 0:03:03]}  Nbd7 {[%clk 0:02:58]} 8. Bf4 {[%clk 0:03:01]}  Nxe5 {[%clk 0:02:56]} 9. Bxe5 {[%clk 0:03:01]}  b6 {[%clk 0:02:52]} 10. Nd2 {[%clk 0:03:00]}  Bb7 {[%clk 0:02:49]} 11. Rc1 {[%clk 0:03:00]}  c5 {[%clk 0:02:43]} 12. dxc5 {[%clk 0:03:00]}  Bxc5 {[%clk 0:02:43]} 13. Nb3 {[%clk 0:02:57]}  Be7 {[%clk 0:02:41]} 14. Bxf6 {[%clk 0:02:56]}  Bxf6 {[%clk 0:02:41]} 15. cxd5 {[%clk 0:02:56]}  Bxd5 {[%clk 0:02:30]} 16. Bxd5 {[%clk 0:02:56]}  Qxd5 {[%clk 0:02:29]} 17. Qxd5 {[%clk 0:02:56]}  exd5 {[%clk 0:02:30]} 18. Rc2 {[%clk 0:02:56]}  Rfc8 {[%clk 0:02:14]} 19. Rd2 {[%clk 0:02:55]}  a5 {[%clk 0:02:04]} 20. Rfd1 {[%clk 0:02:55]}  a4 {[%clk 0:02:03]} 21. Nd4 {[%clk 0:02:55]}  g6 {[%clk 0:01:59]} 22. e3 {[%clk 0:02:48]}  Rc4 {[%clk 0:01:54]} 23. Ne2 {[%clk 0:02:42]}  Rb4 {[%clk 0:01:48]} 24. Nf4 {[%clk 0:02:25]}  Rxb2 {[%clk 0:01:37]} 25. Nxd5 {[%clk 0:02:26]}  Rxd2 {[%clk 0:01:36]} 26. Nxf6+ {[%clk 0:02:26]}  Kg7 {[%clk 0:01:37]} 27. Rxd2 {[%clk 0:02:26]}  Kxf6 {[%clk 0:01:37]} 28. Rd6+ {[%clk 0:02:27]}  Ke5 {[%clk 0:01:37]} 29. Rxb6 {[%clk 0:02:28]}  Kd5 {[%clk 0:01:33]} 30. a3 {[%clk 0:02:27]}  Rc8 {[%clk 0:01:26]} 31. Ra6 {[%clk 0:02:19]}  Rc4 {[%clk 0:01:26]} 32. Kf1 {[%clk 0:02:09]}  Kc5 {[%clk 0:01:26]} 33. Ke2 {[%clk 0:02:06]}  Rc2+ {[%clk 0:01:24]} 34. Kf3 {[%clk 0:02:05]}  Kb5 {[%clk 0:01:24]} 35. Ra7 {[%clk 0:02:05]}  Rc3 {[%clk 0:01:21]} 36. Rxf7 {[%clk 0:02:05]}  Rxa3 {[%clk 0:01:22]} 37. Rxh7 {[%clk 0:02:06]}  Rc3 {[%clk 0:01:19]} 38. Ra7 {[%clk 0:02:04]}  a3 {[%clk 0:01:10]} 39. h4 {[%clk 0:02:03]}  Kb4 {[%clk 0:01:09]} 40. g4 {[%clk 0:01:57]}  Rc5 {[%clk 0:01:08]} 41. Kf4 {[%clk 0:01:43]}  Ra5 {[%clk 0:01:08]} 42. Rd7 {[%clk 0:01:32]}  a2 {[%clk 0:01:06]} 43. Rd1 {[%clk 0:01:32]}  a1=Q {[%clk 0:01:04]} 44. Rxa1 {[%clk 0:01:33]}  Rxa1 {[%clk 0:01:05]} 45. Kg5 {[%clk 0:01:33]}  Rg1 {[%clk 0:00:51]} 46. f3 {[%clk 0:01:30]}  Kc5 {[%clk 0:00:36]} 47. Kxg6 {[%clk 0:01:29]}  Kd6 {[%clk 0:00:36]} 48. h5 {[%clk 0:01:29]}  Ke7 {[%clk 0:00:37]} 49. h6 {[%clk 0:01:27]}  Kf8 {[%clk 0:00:33]} 50. h7 {[%clk 0:01:28]}  Rh1 {[%clk 0:00:31]} 51. g5 {[%clk 0:01:28]}  Rh3 {[%clk 0:00:28]} 52. f4 {[%clk 0:01:29]}  Ke7 {[%clk 0:00:13]} 53. Kg7 {[%clk 0:01:27]} 1-0


[Site "https://www.chess.com"]

[Event "Titled Tuesday Blitz June 27 Early 2023"]
[White "Chigaev, Maksim"]
[Black "Halkias, Stelios"]
[WhiteFideId "4108116"]
[BlackFideId "4201809"]
[WhiteElo "2895"]
[BlackElo "2786"]
[Result "1-0"]
[Round "10"]
[TimeControl "180+2"]
[Date "2023.06.27"]
[WhiteClock "0:01:18"]
[BlackClock "0:00:49"]
[Board "14"]

1. e4 {[%clk 0:03:00]}  c5 {[%clk 0:02:59]} 2. Nf3 {[%clk 0:02:58]}  d6 {[%clk 0:02:59]} 3. d4 {[%clk 0:02:56]}  cxd4 {[%clk 0:02:59]} 4. Nxd4 {[%clk 0:02:57]}  Nf6 {[%clk 0:03:00]} 5. Nc3 {[%clk 0:02:58]}  a6 {[%clk 0:03:00]} 6. f4 {[%clk 0:02:58]}  e5 {[%clk 0:02:57]} 7. Nb3 {[%clk 0:02:57]}  Qc7 {[%clk 0:02:56]} 8. Be2 {[%clk 0:02:37]}  Nbd7 {[%clk 0:02:54]} 9. g4 {[%clk 0:02:36]}  h6 {[%clk 0:02:34]} 10. g5 {[%clk 0:02:34]}  hxg5 {[%clk 0:02:34]} 11. fxg5 {[%clk 0:02:35]}  Ng8 {[%clk 0:02:32]} 12. Nd5 {[%clk 0:02:35]}  Qd8 {[%clk 0:02:33]} 13. Be3 {[%clk 0:02:28]}  Ne7 {[%clk 0:02:29]} 14. h4 {[%clk 0:02:22]}  Nxd5 {[%clk 0:02:25]} 15. Qxd5 {[%clk 0:02:23]}  Nb6 {[%clk 0:02:24]} 16. Qa5 {[%clk 0:02:24]}  Nd7 {[%clk 0:02:20]} 17. Qxd8+ {[%clk 0:02:11]}  Kxd8 {[%clk 0:02:19]} 18. O-O-O {[%clk 0:02:11]}  Ke8 {[%clk 0:02:07]} 19. Bc4 {[%clk 0:02:03]}  Nb8 {[%clk 0:01:52]} 20. h5 {[%clk 0:01:43]}  Be6 {[%clk 0:01:46]} 21. Na5 {[%clk 0:01:42]}  Bg4 {[%clk 0:01:07]} 22. Rdf1 {[%clk 0:01:38]}  Be6 {[%clk 0:01:04]} 23. Bxe6 {[%clk 0:01:29]}  fxe6 {[%clk 0:01:04]} 24. Nxb7 {[%clk 0:01:29]}  Nc6 {[%clk 0:00:49]} 25. Rd1 {[%clk 0:01:18]} 1-0


[Site "https://www.chess.com"]

[Event "Titled Tuesday Blitz June 27 Early 2023"]
[White "Ibarra Jerez, Jose Carlos"]
[Black "Aradhya, Garg"]
[WhiteFideId "2226332"]
[BlackFideId "25006746"]
[WhiteElo "2886"]
[BlackElo "2753"]
[Result "1-0"]
[Round "10"]
[TimeControl "180+2"]
[Date "2023.06.27"]
[WhiteClock "0:00:16"]
[BlackClock "0:00:12"]
[Board "15"]

1. e4 {[%clk 0:03:00]}  e5 {[%clk 0:02:56]} 2. Nf3 {[%clk 0:03:00]}  Nc6 {[%clk 0:02:56]} 3. Nc3 {[%clk 0:03:01]}  Nf6 {[%clk 0:02:56]} 4. h3 {[%clk 0:03:01]}  d5 {[%clk 0:02:53]} 5. exd5 {[%clk 0:03:01]}  Nxd5 {[%clk 0:02:54]} 6. Bb5 {[%clk 0:03:02]}  Nxc3 {[%clk 0:02:54]} 7. bxc3 {[%clk 0:03:02]}  Bd6 {[%clk 0:02:54]} 8. O-O {[%clk 0:03:02]}  O-O {[%clk 0:02:54]} 9. d4 {[%clk 0:03:03]}  exd4 {[%clk 0:02:54]} 10. cxd4 {[%clk 0:03:04]}  Qf6 {[%clk 0:02:54]} 11. Bb2 {[%clk 0:03:03]}  Bf5 {[%clk 0:02:45]} 12. c4 {[%clk 0:03:01]}  Nb4 {[%clk 0:02:39]} 13. Qb3 {[%clk 0:03:00]}  Nd3 {[%clk 0:02:34]} 14. c5 {[%clk 0:02:58]}  Nf4 {[%clk 0:02:19]} 15. cxd6 {[%clk 0:02:52]}  Bxh3 {[%clk 0:02:19]} 16. d5 {[%clk 0:02:22]}  Qh6 {[%clk 0:01:57]} 17. Ne1 {[%clk 0:01:29]}  Bxg2 {[%clk 0:01:54]} 18. Nxg2 {[%clk 0:01:29]}  Nh3+ {[%clk 0:01:54]} 19. Qxh3 {[%clk 0:01:12]}  Qxh3 {[%clk 0:01:55]} 20. dxc7 {[%clk 0:01:12]}  a6 {[%clk 0:01:40]} 21. Ba4 {[%clk 0:01:06]}  b5 {[%clk 0:01:24]} 22. Bb3 {[%clk 0:01:05]}  Qd7 {[%clk 0:01:24]} 23. Be5 {[%clk 0:00:58]}  Rfe8 {[%clk 0:01:22]} 24. Bg3 {[%clk 0:00:57]}  g5 {[%clk 0:01:19]} 25. Rfe1 {[%clk 0:00:51]}  h5 {[%clk 0:01:15]} 26. Re5 {[%clk 0:00:29]}  Rxe5 {[%clk 0:00:58]} 27. Bxe5 {[%clk 0:00:30]}  Re8 {[%clk 0:00:59]} 28. Rc1 {[%clk 0:00:30]}  Qf5 {[%clk 0:00:41]} 29. d6 {[%clk 0:00:20]}  h4 {[%clk 0:00:30]} 30. Ne3 {[%clk 0:00:20]}  Qc8 {[%clk 0:00:30]} 31. Bc2 {[%clk 0:00:15]}  Qe6 {[%clk 0:00:25]} 32. Bf5 {[%clk 0:00:14]}  Qxe5 {[%clk 0:00:26]} 33. d7 {[%clk 0:00:15]}  Kg7 {[%clk 0:00:10]} 34. dxe8=Q {[%clk 0:00:15]}  Qxe8 {[%clk 0:00:10]} 35. c8=Q {[%clk 0:00:16]}  Qe7 {[%clk 0:00:10]} 36. Qc3+ {[%clk 0:00:16]}  Kg8 {[%clk 0:00:11]} 37. Qd4 {[%clk 0:00:16]}  f6 {[%clk 0:00:10]} 38. Rc8+ {[%clk 0:00:15]}  Kf7 {[%clk 0:00:11]} 39. Qd5+ {[%clk 0:00:15]}  Kg7 {[%clk 0:00:11]} 40. Qg8+ {[%clk 0:00:16]}  Kh6 {[%clk 0:00:12]} 41. Qg6# {[%clk 0:00:16]} 1-0


[Site "https://www.chess.com"]